bitfinex-derivatives/quotes_SOLF0:USTF0_20250113
["timestamp","ask_amount","ask_price","bid_price","bid_amount"]
[1736736945762,11.33235309,185.38,185.27,11.33235309]
[1736736946267,2.699,185.34,185.29,2.6995]
[1736736946663,2.699,185.34,185.27,11.33235309]
[1736736947064,2.6988,185.36,185.27,11.33235309]
[1736736948066,2.6988,185.35,185.3,2.6994]
[1736736948260,11.33235309,185.38,185.27,11.33235309]
[1736736948462,11.33235309,185.38,185.25,3.3064]
[1736736948768,2.6993,185.32,185.27,2.6999]
[1736736949359,2.6994,185.31,185.27,2.6999]
[1736736949670,5.76,185.36,185.27,2.6999]
[1736736949868,2.6993,185.32,185.27,2.6999]
[1736736954970,5.76,185.36,185.28,2.6998]
[1736736955271,2.6991,185.33,185.28,2.6998]
[1736736955474,5.76,185.36,185.28,2.6998]
[1736736955662,2.6992,185.32,185.27,2.6999]
[1736736956770,2.6992,185.32,185.28,2.6998]
[1736736961776,11.33235309,185.32,185.24,1.5799]
[1736736961977,5.76,185.36,185.19,7.48197311]
[1736736961978,1.5426,185.35,185.19,7.48197311]
[1736736962184,2.7004,185.24,185.19,7.48197311]
[1736736962482,11.33235309,185.27,185.19,7.48197311]
[1736736962881,2.7006,185.23,185.19,7.48197311]
[1736736963077,11.33235309,185.24,185.19,7.48197311]
[1736736963283,2.701,185.2,185.19,7.48197311]
[1736736963484,2.701,185.2,185.14,2.7018]
[1736736963982,11.33235309,185.21,185.12,4.231]
[1736736964179,11.33235309,185.21,185.12,1.529]
[1736736964385,2.7011,185.2,185.14,2.7018]
[1736736965288,2.7013,185.18,185.12,4.231]
[1736736965481,11.33235309,185.21,185.12,1.529]
[1736736966889,1.6313,185.26,185.14,11.33235309]
[1736736967087,11.33235309,185.27,185.17,11.33235309]
[1736736967283,11.33235309,185.27,185.18,1.6202]
[1736736967679,5.74,185.28,185.18,1.6202]
[1736736967884,17.07235309,185.28,185.18,1.6202]
[1736736968079,2.7001,185.26,185.21,2.7008]
[1736736969089,5.74,185.28,185.21,2.7008]
[1736736969286,11.33235309,185.28,185.18,1.6202]
[1736736969485,194.0,185.3,185.2,11.33235309]
[1736736969486,5.74,185.3,185.2,11.33235309]
[1736736969686,8.4396,185.3,185.21,1.6325]
[1736736969989,76.25258171,185.31,185.24,2.7003]
[1736736970180,81.99258171,185.31,185.24,2.7003]
[1736736971182,76.25258171,185.31,185.25,2.7002]
[1736736971790,2.6995,185.3,185.25,2.7002]
[1736736972290,64.92022862,185.31,185.27,2.6999]
[1736736972494,0.219,185.39,185.23,11.33235309]
[1736736972495,5.74,185.36,185.23,11.33235309]
[1736736972989,14.03095309,185.37,185.26,11.33235309]
[1736736973288,17.07235309,185.4,185.29,11.33235309]
[1736736973491,17.07235309,185.4,185.3,3.3222]
[1736736973987,14.03045309,185.4,185.3,3.3222]
[1736736974191,11.33235309,185.4,185.3,3.3222]
[1736736974384,2.6978,185.42,185.36,2.6985]
[1736736974585,24.91737039,185.43,185.32,11.33235309]
[1736736974888,19.17737039,185.43,185.32,11.33235309]
[1736736975086,21.87497039,185.43,185.32,11.33235309]
[1736736976180,21.87497039,185.43,185.36,2.6985]
[1736736976892,7.8450173,185.43,185.39,2.698]
[1736736978290,7.8450173,185.43,185.38,2.6983]
[1736736978691,2.6975,185.44,185.38,2.6983]
[1736736979695,14.02965309,185.46,185.39,2.6982]
[1736736980192,11.33235309,185.46,185.39,2.6982]
[1736736980594,11.33235309,185.46,185.36,1.5444]
[1736736981396,2.6974,185.45,185.39,2.6981]
[1736736981696,11.33235309,185.46,185.36,1.5444]
[1736736981893,17.07235309,185.49,185.36,1.5444]
[1736736982494,2.6972,185.47,185.38,11.33235309]
[1736736982694,11.33235309,185.49,185.39,1.6813]
[1736736983598,11.33235309,185.46,185.39,1.6813]
[1736736984699,11.33235309,185.49,185.39,1.6813]
[1736736985599,11.33235309,185.49,185.39,3.3702]
[1736736985802,2.697,185.48,185.42,2.6977]
[1736736986195,2.697,185.48,185.39,3.3702]
[1736736987104,2.697,185.48,185.43,2.6976]
[1736736991202,65.43739741,185.5,185.41,11.33235309]
[1736736991403,17.05235309,185.55,185.41,11.33235309]
[1736736991904,2.6965,185.51,185.41,11.33235309]
[1736736992306,2.6965,185.51,185.46,2.697]
[1736736992602,11.33235309,185.55,185.44,11.33235309]
[1736736992802,11.33235309,185.55,185.45,1.5449]
[1736736993304,2.6962,185.53,185.49,2.6967]
[1736736993905,2.6959,185.55,185.45,1.5449]
[1736736994208,11.33235309,185.58,185.45,1.5449]
[1736736994601,2.6965,185.51,185.47,2.6969]
[1736736994899,11.33235309,185.55,185.45,1.5449]
[1736736995107,11.33235309,185.52,185.41,11.33235309]
[1736736996200,2.6969,185.48,185.43,2.6975]
[1736736996703,2.6968,185.49,185.43,2.6975]
[1736736997204,2.6968,185.49,185.44,2.6974]
[1736736997409,2.6964,185.51,185.41,11.33235309]
[1736736997601,11.33235309,185.55,185.41,11.33235309]
[1736736998006,2.6964,185.52,185.41,11.33235309]
[1736736998204,11.33235309,185.52,185.41,11.33235309]
[1736736998506,11.33235309,185.52,185.44,2.6974]
[1736736999205,2.6968,185.49,185.44,2.6974]
[1736736999603,11.33235309,185.52,185.41,11.33235309]
[1736737000505,14.02865309,185.52,185.46,2.6971]
[1736737001106,11.33235309,185.52,185.41,11.33235309]
[1736737001308,11.33235309,185.52,185.43,2.6976]
[1736737001509,1.6714,185.51,185.43,2.6976]
[1736737002207,2.697,185.48,185.43,2.6976]
[1736737003410,2.6976,185.43,185.28,5.72]
[1736737003609,11.33235309,185.46,185.34,1.5374]
[1736737004001,2.6978,185.42,185.37,2.6984]
[1736737005202,11.33235309,185.46,185.34,1.5374]
[1736737005410,11.33235309,185.49,185.34,1.5374]
[1736737005912,2.6973,185.46,185.34,1.5374]
[1736737006606,2.6973,185.46,185.4,2.6979]
[1736737007211,2.697,185.48,185.4,2.698]
[1736737007512,2.697,185.48,185.37,11.33235309]
[1736737007905,2.6968,185.49,185.4,11.33235309]
[1736737008816,5.72,185.5,185.4,11.33235309]
[1736737009010,11.33235309,185.49,185.37,11.33235309]
[1736737009509,2.6974,185.45,185.39,2.698]
[1736737009811,2.6974,185.45,185.37,11.33235309]
[1736737011216,2.6974,185.45,185.4,2.698]
[1736737011611,11.33235309,185.49,185.37,11.33235309]
[1736737011810,2.6977,185.43,185.37,11.33235309]
[1736737012510,11.33235309,185.46,185.34,12.86975309]
[1736737012715,11.33235309,185.46,185.34,11.33235309]
[1736737013014,0.2159,185.48,185.32,1.6047]
[1736737013015,11.33235309,185.43,185.32,1.6047]
[1736737013215,2.6981,185.4,185.32,1.6047]
[1736737014013,11.33235309,185.43,185.32,1.6047]
[1736737014217,2.698,185.41,185.32,1.6047]
[1736737015710,11.33235309,185.36,185.31,0.2111]
[1736737015917,11.33235309,185.36,185.25,29.92789245]
[1736737016110,2.6994,185.31,185.26,2.7001]
[1736737016511,11.33235309,185.36,185.25,29.92789245]
[1736737016717,2.6989,185.35,185.3,2.6995]
[1736737017117,11.33235309,185.36,185.3,2.6995]
[1736737017313,2.6985,185.37,185.32,2.6992]
[1736737017520,18.62235309,185.41,185.3,11.33235309]
[1736737019221,2.6982,185.39,185.3,11.33235309]
[1736737019421,2.6982,185.39,185.29,18.12009198]
[1736737019929,2.6982,185.39,185.34,2.6989]
[1736737020114,8.418,185.41,185.29,18.12009198]
[1736737020316,8.418,185.41,185.3,1.5377]
[1736737020816,2.6981,185.4,185.31,1.6138]
[1736737021017,5.72,185.41,185.31,1.6138]
[1736737021316,5.72,185.41,185.32,1.6767]
[1736737021821,8.4179,185.41,185.32,1.6767]
[1736737022222,8.4179,185.41,185.36,2.6986]
[1736737022418,5.72,185.41,185.32,1.6767]
[1736737022625,18.12009198,185.48,185.32,19.79679198]
[1736737022820,23.84009198,185.48,185.32,19.79679198]
[1736737023124,2.6972,185.46,185.32,19.79679198]
[1736737023924,18.12009198,185.48,185.4,2.6979]
[1736737024124,18.12009198,185.45,185.32,1.6767]
[1736737024923,2.698,185.41,185.35,2.6987]
[1736737025124,18.12009198,185.45,185.35,2.6987]
[1736737025321,18.12009198,185.45,185.32,1.6767]
[1736737025322,2.6982,185.39,185.33,2.6989]
[1736737025522,18.12009198,185.42,185.33,2.6989]
[1736737026223,2.6983,185.39,185.32,1.6767]
[1736737026517,2.6983,185.39,185.34,2.6989]
[1736737027422,217.84009198,185.49,185.32,1.6767]
[1736737027423,2.6979,185.41,185.35,2.6986]
[1736737028616,2.6979,185.41,185.32,1.6767]
[1736737028815,199.72,185.49,185.32,19.79679198]
[1736737029022,18.12009198,185.48,185.32,19.79679198]
[1736737030033,2.6976,185.43,185.39,2.6981]
[1736737030725,2.6975,185.44,185.39,2.6981]
[1736737032429,2.6978,185.42,185.37,2.6984]
[1736737032619,18.12009198,185.48,185.32,19.79679198]
[1736737033025,2.6975,185.44,185.32,19.79679198]
[1736737034625,2.6972,185.46,185.35,18.12009198]
[1736737036126,2.6972,185.46,185.41,2.6978]
[1736737036527,5.9374,185.5,185.41,2.6978]
[1736737036726,2.6974,185.45,185.41,2.6978]
[1736737037728,2.6977,185.43,185.39,2.6981]
[1736737038032,2.6977,185.43,185.32,1.6767]
[1736737038727,18.12009198,185.48,185.32,1.6767]
[1736737039135,1.6055,185.51,185.37,18.12009198]
[1736737039329,2.6963,185.53,185.48,2.6969]
[1736737040226,2.6963,185.53,185.43,18.12009198]
[1736737040429,5.72,185.59,185.43,18.12009198]
[1736737040731,25.48389198,185.6,185.46,18.12009198]
[1736737040929,2.6957,185.56,185.46,18.12009198]
[1736737041230,2.6957,185.56,185.47,1.6]
[1736737041532,2.6957,185.56,185.48,11.30455204]
[1736737042128,11.30455204,185.56,185.45,11.30455204]
[1736737042332,11.30455204,185.53,185.42,12.89135204]
[1736737042932,11.30455204,185.58,185.42,12.89135204]
[1736737042933,2.6971,185.47,185.42,2.6977]
[1736737043229,5.72,185.52,185.41,3.1273]
[1736737043431,17.02455204,185.52,185.41,3.1273]
[1736737044127,2.6965,185.51,185.45,2.6973]
[1736737045334,5.72,185.52,185.41,3.1273]
[1736737045536,2.696,185.54,185.49,2.6967]
[1736737046231,19.75752808,185.57,185.42,18.10142808]
[1736737046431,2.6961,185.54,185.42,18.10142808]
[1736737046937,2.6961,185.54,185.49,2.6967]
[1736737047129,19.75752808,185.57,185.42,18.10142808]
[1736737047324,4.3518,185.57,185.45,18.10142808]
[1736737047527,4.3518,185.57,185.52,2.6963]
[1736737047726,63.16440303,185.58,185.46,1.6394]
[1736737049334,65.85980303,185.58,185.53,2.6961]
[1736737049731,63.16440303,185.58,185.46,1.6394]
[1736737049931,63.16440303,185.58,185.54,2.6959]
[1736737050533,63.16440303,185.58,185.55,2.6958]
[1736737051234,8.4151,185.61,185.55,2.6958]
[1736737051429,1.6143,185.62,185.56,2.6957]
[1736737052439,2.695,185.61,185.56,2.6957]
[1736737052841,2.6954,185.58,185.53,2.696]
[1736737053038,18.10142808,185.6,185.53,2.696]
[1736737053935,2.6956,185.57,185.49,3.1192]
[1736737054142,18.10142808,185.6,185.49,1.5492]
[1736737054744,2.6956,185.57,185.49,4.2459]
[1736737055037,18.10142808,185.6,185.49,1.5492]
[1736737055442,2.696,185.54,185.5,2.6965]
[1736737056337,18.10142808,185.6,185.49,1.5492]
[1736737056545,1.6143,185.62,185.49,1.5492]
[1736737056746,1.6143,185.62,185.5,1.5633]
[1736737057544,2.6951,185.6,185.5,1.5633]
[1736737057946,1.6143,185.62,185.5,1.5633]
[1736737058243,2.6956,185.58,185.53,2.696]
[1736737060245,2.6956,185.58,185.54,2.6959]
[1736737061048,2.6953,185.59,185.55,2.6958]
[1736737062142,2.6953,185.59,185.54,2.696]
[1736737062548,1.6143,185.62,185.5,1.5633]
[1736737062748,2.6955,185.58,185.53,2.6961]
[1736737063250,8.11998495,185.63,185.5,19.66472808]
[1736737063842,2.6949,185.62,185.57,2.6954]
[1736737064249,8.11998495,185.63,185.57,2.6954]
[1736737064449,2.695,185.61,185.57,2.6954]
[1736737064657,8.11998495,185.63,185.53,2.696]
[1736737064848,8.11998495,185.63,185.5,19.66472808]
[1736737065049,2.6953,185.6,185.5,19.66472808]
[1736737065254,2.6953,185.6,185.55,2.6957]
[1736737065656,2.6953,185.6,185.5,19.66472808]
[1736737065657,2.6953,185.6,185.56,2.6957]
[1736737067056,2.695,185.62,185.5,19.66472808]
[1736737067250,8.11998495,185.63,185.5,19.66472808]
[1736737067450,8.11998495,185.63,185.52,11.29948564]
[1736737068559,10.81468495,185.63,185.58,2.6953]
[1736737069549,8.11998495,185.63,185.58,2.6953]
[1736737069755,2.6949,185.62,185.58,2.6953]
[1736737070762,2.695,185.61,185.56,2.6956]
[1736737070962,8.11998495,185.63,185.52,11.29948564]
[1736737071356,2.6949,185.62,185.58,2.6954]
[1736737071562,74.10562793,185.69,185.58,11.29948564]
[1736737071754,0.80065009,185.68,185.59,1.6428]
[1736737072465,2.6945,185.65,185.6,2.695]
[1736737072761,74.10562793,185.69,185.59,1.6428]
[1736737072957,2.6947,185.64,185.59,4.3379]
[1736737073158,74.10562793,185.69,185.59,1.6428]
[1736737073359,0.80059125,185.68,185.59,1.6428]
[1736737073552,2.6948,185.63,185.59,1.6428]
[1736737073955,5.72,185.68,185.59,1.6428]
[1736737074555,2.6944,185.65,185.6,2.695]
[1736737075362,2.6948,185.63,185.59,1.6428]
[1736737075565,5.72,185.68,185.59,1.6428]
[1736737075963,0.80051554,185.67,185.59,1.6428]
[1736737076164,5.72,185.68,185.59,1.6428]
[1736737076366,0.80049984,185.67,185.59,1.6428]
[1736737076567,5.72,185.68,185.59,1.6428]
[1736737076867,2.6944,185.66,185.59,4.338]
[1736737077168,5.72,185.68,185.59,4.338]
[1736737077570,2.6947,185.64,185.59,4.338]
[1736737078665,2.6944,185.65,185.61,2.6949]
[1736737079169,74.10562793,185.69,185.59,1.6428]
[1736737079368,2.6942,185.67,185.62,2.6947]
[1736737080168,2.6946,185.64,185.6,2.6951]
[1736737083366,62.80614229,185.69,185.59,1.6428]
[1736737083570,2.6943,185.66,185.61,2.6949]
[1736737083970,2.6941,185.68,185.63,2.6946]
[1736737086169,62.80614229,185.69,185.63,2.6946]
[1736737086471,2.6942,185.67,185.63,2.6946]
[1736737086674,62.80614229,185.69,185.61,11.29948564]
[1736737086876,2.6942,185.67,185.62,2.6948]
[1736737088272,2.6942,185.67,185.61,11.29948564]
[1736737088472,2.6942,185.67,185.63,2.6946]
[1736737089078,11.29948564,185.72,185.61,11.29948564]
[1736737089273,7.3465,185.73,185.61,11.29948564]
[1736737089274,2.694,185.68,185.61,11.29948564]
[1736737089481,1.6265,185.73,185.64,11.29948564]
[1736737089975,2.6938,185.7,185.66,2.6943]
[1736737090367,64.70356938,185.78,185.64,11.29948564]
[1736737090675,148.73153439,185.81,185.7,11.29948564]
[1736737090974,8.42843858,185.8,185.71,1.58]
[1736737091172,7.62734161,185.8,185.71,1.58]
[1736737091571,148.73153439,185.81,185.71,1.58]
[1736737091774,1.5881,185.81,185.71,1.58]
[1736737092273,1.5881,185.81,185.73,2.6932]
[1736737092677,11.29948564,185.8,185.71,1.58]
[1736737093069,2.6926,185.78,185.71,1.58]
[1736737093269,11.29948564,185.8,185.71,1.58]
[1736737093674,11.29948564,185.8,185.67,11.29948564]
[1736737093875,11.29948564,185.77,185.67,11.29948564]
[1736737094071,11.29948564,185.77,185.66,2.6942]
[1736737094880,11.29948564,185.77,185.65,4.2159]
[1736737095079,11.29948564,185.74,185.65,1.5215]
[1736737095273,2.6938,185.7,185.65,1.5215]
[1736737096078,2.6935,185.72,185.65,1.5215]
[1736737096585,2.6929,185.76,185.67,11.29948564]
[1736737096778,7.6122018,185.8,185.67,11.29948564]
[1736737096779,18.91168744,185.8,185.67,11.29948564]
[1736737096973,11.29948564,185.8,185.68,1.572]
[1736737097473,2.6927,185.77,185.72,2.6933]
[1736737097676,11.29948564,185.8,185.68,1.572]
[1736737098585,11.29948564,185.84,185.73,11.29948564]
[1736737098789,1.5589,185.83,185.73,11.29948564]
[1736737099278,11.29948564,185.81,185.7,11.29948564]
[1736737101486,12.85838564,185.83,185.7,11.29948564]
[1736737101881,2.6924,185.8,185.72,2.6934]
[1736737102086,12.85838564,185.83,185.72,2.6934]
[1736737102782,12.85838564,185.83,185.71,2.6935]
[1736737103483,2.6928,185.77,185.71,2.6935]
[1736737104085,12.85838564,185.83,185.73,2.6932]
[1736737104284,1.5589,185.83,185.7,11.29948564]
[1736737104486,1.5589,185.83,185.73,11.29948564]
[1736737104680,1.5589,185.83,185.74,1.637]
[1736737104885,2.6923,185.8,185.75,2.6929]
[1736737105191,11.29948564,185.85,185.74,1.637]
[1736737105490,2.6921,185.81,185.76,2.6927]
[1736737106988,2.6921,185.81,185.75,1.5336]
[1736737107188,2.6921,185.81,185.77,2.6926]
[1736737108193,2.6918,185.83,185.79,2.6923]
[1736737108691,2.6918,185.83,185.76,11.29948564]
[1736737109392,11.29948564,185.87,185.76,11.29948564]
[1736737109586,64.67338285,185.88,185.79,11.29948564]
[1736737109895,64.67338285,185.88,185.82,2.6919]
[1736737111193,2.6914,185.86,185.82,2.6919]
[1736737111897,64.67338285,185.88,185.75,1.5336]
[1736737112188,11.59597839,185.92,185.85,2.6915]
[1736737113093,11.59597839,185.92,185.84,1.6531]
[1736737113788,11.29948564,185.91,185.84,1.6531]
[1736737114496,2.6913,185.87,185.84,1.6531]
[1736737118696,2.6913,185.87,185.83,2.6918]
[1736737118900,11.29948564,185.91,185.77,1.6182]
[1736737119697,2.6912,185.87,185.82,2.6919]
[1736737120098,2.6912,185.87,185.77,1.6182]
[1736737120298,2.6912,185.87,185.82,2.6918]
[1736737120799,11.29948564,185.91,185.8,11.29948564]
[1736737121103,2.6911,185.89,185.85,2.6915]
[1736737121503,11.59597839,185.92,185.85,2.6915]
[1736737121704,2.6908,185.9,185.85,2.6915]
[1736737121904,2.6908,185.9,185.83,11.29948564]
[1736737122103,11.59597839,185.92,185.83,11.29948564]
[1736737122304,14.28647839,185.92,185.84,1.568]
[1736737123003,2.6905,185.92,185.84,1.568]
[1736737123204,2.6905,185.92,185.87,2.6911]
[1736737123907,2.6907,185.91,185.87,2.6911]
[1736737124405,2.691,185.89,185.84,4.2596]
[1736737124607,7.3492,185.96,185.67,29.92789245]
[1736737124608,11.29948564,185.91,185.68,35.31559245]
[1736737124802,11.29948564,185.91,185.77,4.7938]
[1736737125110,2.6911,185.88,185.79,11.29948564]
[1736737126113,13.99028564,185.91,185.79,11.29948564]
[1736737126309,11.29948564,185.91,185.79,11.29948564]
[1736737127407,2.6911,185.88,185.83,2.6917]
[1736737127905,2.6911,185.88,185.79,11.29948564]
[1736737127906,2.6904,185.93,185.85,2.6915]
[1736737128211,11.29948564,185.93,185.79,11.29948564]
[1736737128508,2.6908,185.9,185.85,2.6914]
[1736737128715,2.6908,185.9,185.82,11.29948564]
[1736737129410,2.6906,185.91,185.86,2.6912]
[1736737130714,17.05948564,185.95,185.85,2.6915]
[1736737131516,2.6909,185.9,185.85,2.6915]
[1736737132617,2.6909,185.9,185.86,2.6913]
[1736737133924,2.6905,185.92,185.87,2.6911]
[1736737134116,2.6905,185.92,185.82,11.29948564]
[1736737134515,2.6904,185.93,185.88,2.691]
[1736737134916,2.6904,185.93,185.82,11.29948564]
[1736737135611,2.6904,185.93,185.85,11.29948564]
[1736737135815,2.6904,185.93,185.86,1.6227]
[1736737136119,2.6904,185.93,185.89,2.6908]
[1736737139721,11.29948564,185.97,185.89,2.6908]
[1736737139918,2.6905,185.92,185.89,2.6908]
[1736737140424,2.6905,185.92,185.88,2.691]
[1736737144536,11.29948564,185.97,185.86,3.1425]
[1736737144829,11.29948564,185.97,185.89,2.6909]
[1736737145431,18.9306097,185.97,185.89,2.6909]
[1736737146029,11.29948564,185.97,185.89,2.6909]
[1736737146232,2.6905,185.93,185.89,2.6909]
[1736737146631,11.29948564,185.97,185.86,3.1425]
[1736737147631,2.6905,185.93,185.86,3.1425]
[1736737148431,2.6905,185.93,185.89,2.6908]
[1736737149536,7.64207393,185.97,185.91,2.6906]
[1736737149537,2.6902,185.95,185.91,2.6906]
[1736737149738,2.6902,185.95,185.9,7.20621495]
[1736737150440,7.20621495,185.96,185.9,7.20621495]
[1736737150641,9.89651495,185.94,185.9,2.6906]
[1736737152040,7.20621495,185.94,185.9,2.6906]
[1736737152241,2.6904,185.93,185.9,2.6906]
[1736737152848,2.6904,185.93,185.88,7.20621495]
[1736737152849,7.64207393,185.99,185.88,7.20621495]
[1736737153142,9.89651495,185.94,185.89,2.6908]
[1736737155045,9.89651495,185.94,185.9,2.6907]
[1736737156650,7.20621495,185.92,185.87,2.6912]
[1736737156855,7.20621495,185.9,185.84,7.20621495]
[1736737157550,7.20621495,185.92,185.84,7.20621495]
[1736737158156,2.6908,185.9,185.86,9.89741495]
[1736737158655,7.20621495,185.92,185.86,9.89741495]
[1736737158956,2.6907,185.91,185.86,9.89741495]
[1736737163248,7.20621495,185.92,185.86,9.89741495]
[1736737163457,2.6908,185.9,185.86,9.89741495]
[1736737163955,7.20621495,185.9,185.85,2.6915]
[1736737165159,2.6909,185.89,185.85,2.6915]
[1736737172363,7.20621495,185.9,185.84,7.20621495]
[1736737172665,7.20621495,185.88,185.81,7.51998495]
[1736737173660,7.20621495,185.88,185.83,7.20621495]
[1736737174166,2.6913,185.87,185.83,9.89791495]
[1736737192075,2.6913,185.87,185.83,7.20621495]
[1736737198779,7.20621495,185.88,185.83,7.20621495]
[1736737198980,7.20621495,185.88,185.8,1.6297]
[1736737199280,7.20621495,185.86,185.8,1.6297]
[1736737199577,2.6918,185.84,185.8,1.6297]
[1736737199975,2.6918,185.84,185.8,4.3219]
[1736737200677,2.6918,185.83,185.8,1.6297]
[1736737200878,2.6918,185.83,185.79,13.12571495]
[1736737201177,7.67554644,185.91,185.81,7.20621495]
[1736737201382,2.6914,185.86,185.81,7.20621495]
[1736737201679,7.20621495,185.86,185.79,3.2272]
[1736737201876,2.6921,185.82,185.79,3.2272]
[1736737202080,7.20621495,185.86,185.79,3.2272]
[1736737202476,7.20621495,185.84,185.79,3.2272]
[1736737202983,15.38704044,185.91,185.79,1.541]
[1736737203286,7.20621495,185.9,185.84,7.20621495]
[1736737203780,2.6913,185.87,185.84,7.20621495]
[1736737205887,7.20621495,185.87,185.8,1.5603]
[1736737206083,7.20621495,185.87,185.79,8.74721495]
[1736737206379,7.20621495,185.85,185.79,8.74721495]
[1736737206570,2.6918,185.84,185.79,1.541]
[1736737206771,7.20621495,185.85,185.79,1.541]
[1736737207579,2.6921,185.82,185.79,1.541]
[1736737207776,2.6921,185.82,185.77,2.6926]
[1736737207777,7.20621495,185.85,185.71,1.5603]
[1736737207976,7.20621495,185.85,185.77,7.20621495]
[1736737207977,2.6923,185.8,185.77,7.20621495]
[1736737208378,7.20621495,185.83,185.72,3.052]
[1736737208682,7.20621495,185.83,185.76,7.20621495]
[1736737209379,2.6924,185.8,185.76,7.20621495]
[1736737210685,2.6921,185.82,185.78,7.20621495]
[1736737210982,13.38961148,185.84,185.78,7.20621495]
[1736737211183,5.72,185.84,185.78,7.20621495]
[1736737211385,2.6919,185.83,185.78,7.20621495]
[1736737211582,2.6919,185.83,185.78,9.89871495]
[1736737211787,2.6919,185.83,185.78,2.6925]
[1736737212084,2.6919,185.83,185.79,7.20621495]
[1736737212392,7.3059,185.87,185.81,7.20621495]
[1736737212577,7.3059,185.87,185.8,2.6922]
[1736737212578,7.20621495,185.86,185.8,2.6922]
[1736737212783,2.6921,185.81,185.76,2.6928]
[1736737212984,7.20621495,185.84,185.77,7.20621495]
[1736737213585,2.6922,185.81,185.77,7.20621495]
[1736737214884,2.6923,185.8,185.75,2.99055]
[1736737215082,7.20621495,185.82,185.75,0.29755]
[1736737215280,7.20621495,185.8,185.75,0.29755]
[1736737215477,7.20621495,185.82,185.75,0.29755]
[1736737215986,5.72,185.85,185.78,7.20621495]
[1736737216179,20.58644939,185.88,185.8,7.20621495]
[1736737216383,2.6911,185.88,185.83,2.6918]
[1736737217385,12.92621495,185.9,185.84,7.20621495]
[1736737217689,2.6908,185.9,185.86,7.20621495]
[1736737218385,2.6906,185.92,185.86,9.89761495]
[1736737218683,14.87310112,185.95,185.88,7.20621495]
[1736737218882,7.20621495,185.95,185.88,7.20621495]
[1736737219385,2.6904,185.93,185.88,7.20621495]
[1736737219585,7.20621495,185.95,185.88,7.20621495]
[1736737219787,2.6907,185.91,185.86,7.20621495]
[1736737220176,7.20621495,185.95,185.88,7.20621495]
[1736737220377,5.7,185.97,185.9,7.20621495]
[1736737220585,7.20621495,185.96,185.9,7.20621495]
[1736737220780,7.20621495,185.97,185.9,7.20621495]
[1736737220982,2.6902,185.94,185.9,7.20621495]
[1736737221188,2.6902,185.94,185.84,3.3055]
[1736737221189,7.20621495,185.98,185.92,7.20621495]
[1736737221382,2.6897,185.98,185.92,7.20621495]
[1736737221689,2.6897,185.98,185.94,7.20621495]
[1736737223291,2.6895,185.99,185.96,7.20621495]
[1736737223880,2.6897,185.98,185.94,8.74871495]
[1736737225188,9.33774785,186.0,185.96,7.20621495]
[1736737225586,67.43272181,186.02,185.98,7.20621495]
[1736737225794,8.81571495,186.06,185.98,7.20621495]
[1736737226086,7.20621495,186.04,185.98,7.20621495]
[1736737226387,2.6891,186.02,185.98,7.20621495]
[1736737226592,7.20621495,186.0,185.94,1.5425]
[1736737226787,2.6899,185.97,185.94,1.5425]
[1736737227285,7.20621495,185.98,185.94,1.5425]
[1736737227493,2.69,185.96,185.94,1.5425]
[1736737228287,7.20621495,185.98,185.94,1.5425]
[1736737228687,2.6898,185.97,185.94,1.5425]
[1736737228882,7.20621495,185.98,185.91,7.20621495]
[1736737229495,2.6899,185.96,185.91,7.20621495]
[1736737229698,2.6899,185.96,185.93,7.20621495]
[1736737231392,7.20621495,185.98,185.93,7.20621495]
[1736737232291,7.20621495,185.98,185.91,8.89381495]
[1736737232992,2.6901,185.95,185.91,8.89381495]
[1736737233193,7.20621495,185.96,185.91,1.6876]
[1736737233997,7.20621495,185.94,185.86,7.20621495]
[1736737234195,7.20621495,185.92,185.84,7.20621495]
[1736737234393,7.20621495,185.9,185.8,1.6112]
[1736737234598,7.20621495,185.9,185.83,7.20621495]
[1736737234904,7.20621495,185.88,185.81,7.20621495]
[1736737235102,2.6914,185.86,185.81,7.20621495]
[1736737235594,7.20621495,185.88,185.81,7.20621495]
[1736737235799,2.6915,185.85,185.81,7.20621495]